[Event "*** Titled Tuesday 3|2 Blitz"]
[Site "Chess.com"]
[Date "2016.05.03"]
[Round "1"]
[White "AungTZ"]
[Black "attack2mateU"]
[Result "1-0"]
[WhiteElo "2074"]
[BlackElo "2428"]
[TimeControl "180+2"]
[EndTime "17:09:10 PDT"]
[Termination "AungTZ won by resignation"]

1. e4 {[%clk 0:03:01.9]} 1... c5 {[%clk 0:03:01]} 2. Nf3 {[%clk 0:03:01.8]} 2...
d6 {[%clk 0:03:02.1]} 3. d4 {[%clk 0:03:01.9]} 3... cxd4 {[%clk 0:03:03.3]} 4.
Nxd4 {[%clk 0:03:03.1]} 4... Nf6 {[%clk 0:03:04.7]} 5. Nc3 {[%clk 0:03:03.9]}
5... a6 {[%clk 0:03:06.1]} 6. g3 {[%clk 0:03:04]} 6... g6 {[%clk 0:03:03.6]} 7.
Bg2 {[%clk 0:03:05.1]} 7... Bg7 {[%clk 0:03:04.6]} 8. O-O {[%clk 0:03:06.1]}
8... O-O {[%clk 0:03:05.7]} 9. b3 {[%clk 0:03:07]} 9... Nc6 {[%clk 0:03:01.1]}
10. Nxc6 {[%clk 0:03:03.4]} 10... bxc6 {[%clk 0:03:01.8]} 11. Bb2 {[%clk
0:03:05.1]} 11... Bb7 {[%clk 0:02:34.3]} 12. Na4 {[%clk 0:02:58.4]} 12... e5
{[%clk 0:02:27.5]} 13. c4 {[%clk 0:02:58.1]} 13... c5 {[%clk 0:02:28.3]} 14. Re1
{[%clk 0:02:55.3]} 14... Qc7 {[%clk 0:02:26.9]} 15. Nc3 {[%clk 0:02:51.2]} 15...
Nd7 {[%clk 0:02:14.9]} 16. Qd2 {[%clk 0:02:32.8]} 16... Rfd8 {[%clk 0:02:15.1]}
17. Rad1 {[%clk 0:02:32.6]} 17... Nf8 {[%clk 0:02:16]} 18. Bc1 {[%clk
0:02:30.2]} 18... Ne6 {[%clk 0:02:16.5]} 19. Ne2 {[%clk 0:02:28.8]} 19... Nd4
{[%clk 0:02:16]} 20. Nxd4 {[%clk 0:02:30]} 20... cxd4 {[%clk 0:02:16.7]} 21. Qd3
{[%clk 0:02:30.7]} 21... a5 {[%clk 0:02:17.8]} 22. a4 {[%clk 0:02:30.5]} 22...
Qb6 {[%clk 0:02:17.2]} 23. Ba3 {[%clk 0:02:29.4]} 23... Rab8 {[%clk 0:02:10.3]}
24. Rb1 {[%clk 0:02:30.2]} 24... Ba8 {[%clk 0:02:11.5]} 25. h3 {[%clk
0:02:29.3]} 25... Bf8 {[%clk 0:02:07.7]} 26. Kh2 {[%clk 0:02:24.4]} 26... Qc7
{[%clk 0:02:08.7]} 27. Bc1 {[%clk 0:02:19.5]} 27... Be7 {[%clk 0:01:59.8]} 28.
Bd2 {[%clk 0:02:18.6]} 28... Rdc8 {[%clk 0:01:58.7]} 29. Rec1 {[%clk 0:02:16.4]}
29... Bd8 {[%clk 0:01:59.8]} 30. f4 {[%clk 0:02:16.2]} 30... Qe7 {[%clk
0:02:00.7]} 31. Rf1 {[%clk 0:02:11.7]} 31... f6 {[%clk 0:01:56]} 32. f5 {[%clk
0:02:11.7]} 32... g5 {[%clk 0:01:57.1]} 33. h4 {[%clk 0:02:12.9]} 33... h6
{[%clk 0:01:57.6]} 34. Qf3 {[%clk 0:02:12.1]} 34... Bc6 {[%clk 0:01:56.8]} 35.
Bh3 {[%clk 0:02:08.1]} 35... Be8 {[%clk 0:01:57.7]} 36. Kg2 {[%clk 0:02:08.4]}
36... Bf7 {[%clk 0:01:48]} 37. hxg5 {[%clk 0:02:08]} 37... hxg5 {[%clk 0:01:49]}
38. Bg4 {[%clk 0:02:09.6]} 38... Rb7 {[%clk 0:01:43.3]} 39. Rh1 {[%clk
0:02:10.4]} 39... Rcb8 {[%clk 0:01:45]} 40. Bh5 {[%clk 0:02:07.5]} 40... Kf8
{[%clk 0:01:38.6]} 41. Bg6 {[%clk 0:02:08.3]} 41... Bg8 {[%clk 0:01:33.7]} 42.
g4 {[%clk 0:01:52.4]} 42... Bb6 {[%clk 0:01:31.8]} 43. Rh3 {[%clk 0:01:49]}
43... Qd8 {[%clk 0:01:30.3]} 44. Rbh1 {[%clk 0:01:44.5]} 44... Bc5 {[%clk
0:01:30.8]} 45. Qd1 {[%clk 0:01:45.5]} 45... Bb4 {[%clk 0:01:30.2]} 46. Bc1
{[%clk 0:01:45.4]} 46... Bc3 {[%clk 0:01:30]} 47. Rh8 {[%clk 0:01:42.5]} 47...
Rg7 {[%clk 0:01:22.4]} 48. Bh7 {[%clk 0:01:39.9]} 48... Qb6 {[%clk 0:01:15.6]}
49. Bxg8 {[%clk 0:01:23.8]} 49... Rxg8 {[%clk 0:01:16.5]} 50. Rxg8+ {[%clk
0:01:24.7]} 50... Kxg8 {[%clk 0:01:18.4]} 51. Qf3 {[%clk 0:01:18.3]} 51... Qxb3
{[%clk 0:01:16.3]} 52. Qh3 {[%clk 0:01:15.4]} 52... Qc2+ {[%clk 0:01:15.7]} 53.
Kf3 {[%clk 0:01:15.8]} 53... Qd3+ {[%clk 0:01:14.7]} 54. Kg2 {[%clk 0:01:17.5]}
54... Qxe4+ {[%clk 0:01:06.7]} 55. Kf1 {[%clk 0:01:11.6]} 55... Qe1+ {[%clk
0:01:04]} 56. Kg2 {[%clk 0:01:12.9]} 56... Qe2+ {[%clk 0:00:59.2]} 57. Kg1
{[%clk 0:01:14.3]} 57... Qe1+ {[%clk 0:00:29.6]} 58. Kg2 {[%clk 0:01:15.1]}
58... Qe4+ {[%clk 0:00:31.3]} 59. Kg1 {[%clk 0:01:14.4]} 59... Qxh1+ {[%clk
0:00:26.6]} 60. Kxh1 {[%clk 0:01:12.8]} 60... Rb1 {[%clk 0:00:28.5]} 61. Qh6
{[%clk 0:01:10.8]} 61... Rxc1+ {[%clk 0:00:29.1]} 62. Kg2 {[%clk 0:01:12.2]}
62... e4 {[%clk 0:00:22]} 63. Qg6+ {[%clk 0:01:12.5]} 63... Kh8 {[%clk
0:00:23.3]} 64. Qxf6+ {[%clk 0:01:13.3]} 64... Kg8 {[%clk 0:00:24.7]} 65. Qxg5+
{[%clk 0:01:13.6]} 1-0

[Event "*** Titled Tuesday 3|2 Blitz"]
[Site "Chess.com"]
[Date "2016.05.03"]
[Round "1"]
[White "SabinaFoisor"]
[Black "gmjoey1"]
[Result "1-0"]
[WhiteElo "2177"]
[BlackElo "2530"]
[TimeControl "180+2"]
[EndTime "17:09:15 PDT"]
[Termination "SabinaFoisor won by resignation"]

1. d4 {[%clk 0:02:50.3]} 1... Nf6 {[%clk 0:02:59.1]} 2. c4 {[%clk 0:02:49.8]}
2... e6 {[%clk 0:02:57]} 3. Nf3 {[%clk 0:02:49.8]} 3... c5 {[%clk 0:02:57.5]} 4.
d5 {[%clk 0:02:47.6]} 4... exd5 {[%clk 0:02:58.4]} 5. cxd5 {[%clk 0:02:49.5]}
5... a6 {[%clk 0:02:59.6]} 6. a4 {[%clk 0:02:46.6]} 6... Bd6 {[%clk 0:03:01]} 7.
Nc3 {[%clk 0:02:45.6]} 7... Qe7 {[%clk 0:03:02.5]} 8. Bg5 {[%clk 0:02:44]} 8...
h6 {[%clk 0:03:02.8]} 9. Bxf6 {[%clk 0:02:39.5]} 9... Qxf6 {[%clk 0:03:03.1]}
10. Ne4 {[%clk 0:02:35.4]} 10... Qe7 {[%clk 0:03:03.8]} 11. Nxd6+ {[%clk
0:02:34.7]} 11... Qxd6 {[%clk 0:03:04.1]} 12. e3 {[%clk 0:02:35.8]} 12... Qf6
{[%clk 0:02:57.9]} 13. d6 {[%clk 0:02:21.5]} 13... Qxb2 {[%clk 0:02:50.5]} 14.
Bd3 {[%clk 0:02:16]} 14... Qc3+ {[%clk 0:02:49.2]} 15. Ke2 {[%clk 0:02:10.6]}
15... Qb2+ {[%clk 0:02:49.7]} 16. Qd2 {[%clk 0:02:10]} 16... Qf6 {[%clk
0:02:45.3]} 17. Bc4 {[%clk 0:01:52.3]} 17... Nc6 {[%clk 0:02:42.8]} 18. a5
{[%clk 0:01:46.5]} 18... Rb8 {[%clk 0:02:29.2]} 19. Rab1 {[%clk 0:01:41.8]}
19... O-O {[%clk 0:02:28.2]} 20. Rhd1 {[%clk 0:01:42.2]} 20... Re8 {[%clk
0:02:28.9]} 21. Kf1 {[%clk 0:01:42.7]} 21... Qd8 {[%clk 0:02:17.1]} 22. Rb6
{[%clk 0:01:34.9]} 22... Qf6 {[%clk 0:02:14.4]} 23. Kg1 {[%clk 0:01:25.7]} 23...
g6 {[%clk 0:02:14.6]} 24. h3 {[%clk 0:01:26.8]} 24... Kg7 {[%clk 0:02:14.9]} 25.
Kh2 {[%clk 0:01:02.7]} 25... Re4 {[%clk 0:02:15]} 26. Bxa6 {[%clk 0:00:58.6]}
26... bxa6 {[%clk 0:02:11.2]} 27. Rxb8 {[%clk 0:00:52.3]} 27... Nxb8 {[%clk
0:02:13.1]} 28. Qd5 {[%clk 0:00:50.3]} 28... Rb4 {[%clk 0:02:03]} 29. Qxc5
{[%clk 0:00:48.4]} 29... Nc6 {[%clk 0:02:03.9]} 30. Nd4 {[%clk 0:00:31.7]} 30...
Qe5+ {[%clk 0:01:51.1]} 31. Qxe5+ {[%clk 0:00:31.7]} 31... Nxe5 {[%clk 0:01:53]}
32. Rc1 {[%clk 0:00:20.7]} 32... Rc4 {[%clk 0:01:53.4]} 33. Rb1 {[%clk
0:00:21.1]} 33... Rc5 {[%clk 0:01:53.9]} 34. Rb8 {[%clk 0:00:21.3]} 34... Nc4
{[%clk 0:01:54.7]} 35. Nb3 {[%clk 0:00:19.4]} 35... Rc6 {[%clk 0:01:54.9]} 36.
Nd4 {[%clk 0:00:19.9]} 36... Rc5 {[%clk 0:01:55.5]} 37. Nb3 {[%clk 0:00:21.1]}
37... Rb5 {[%clk 0:01:50.8]} 38. Rxc8 {[%clk 0:00:20]} 38... Nxd6 {[%clk
0:01:51.6]} 39. Rc3 {[%clk 0:00:20.7]} 39... Ne4 {[%clk 0:01:53.1]} 40. Rd3
{[%clk 0:00:21.4]} 40... Nxf2 {[%clk 0:01:53.9]} 41. Rc3 {[%clk 0:00:22.5]}
41... Ne4 {[%clk 0:01:53.3]} 42. Rd3 {[%clk 0:00:23.8]} 42... Nf6 {[%clk
0:01:53.6]} 43. Kg3 {[%clk 0:00:22.6]} 43... h5 {[%clk 0:01:54.2]} 44. Kf3
{[%clk 0:00:23.6]} 44... h4 {[%clk 0:01:52.6]} 45. e4 {[%clk 0:00:21.7]} 45...
Rg5 {[%clk 0:01:51.5]} 46. Kf4 {[%clk 0:00:15.6]} 46... Rxg2 {[%clk 0:01:49.2]}
47. e5 {[%clk 0:00:16.8]} 47... Nh5+ {[%clk 0:01:49.9]} 48. Ke4 {[%clk
0:00:18.1]} 48... Rg3 {[%clk 0:01:48.8]} 49. Nc5 {[%clk 0:00:16.2]} 49... Rxd3
{[%clk 0:01:46]} 50. Kxd3 {[%clk 0:00:18.1]} 50... Nf4+ {[%clk 0:01:46.6]} 51.
Ke3 {[%clk 0:00:19]} 51... Nxh3 {[%clk 0:01:48]} 52. Nxa6 {[%clk 0:00:20]} 52...
Ng5 {[%clk 0:01:49.4]} 53. Nc5 {[%clk 0:00:20.5]} 53... h3 {[%clk 0:01:48.6]}
54. Kf2 {[%clk 0:00:21.6]} 54... Nf3 {[%clk 0:01:09.2]} 55. a6 {[%clk
0:00:19.5]} 55... Ne1 {[%clk 0:01:09.2]} 56. a7 {[%clk 0:00:19.1]} 56... h2
{[%clk 0:01:04.7]} 57. a8=Q {[%clk 0:00:18.4]} 57... Nc2 {[%clk 0:01:05.9]} 58.
Qh1 {[%clk 0:00:17.6]} 58... Nd4 {[%clk 0:01:07.3]} 59. Qxh2 {[%clk 0:00:18.6]}
59... Nf5 {[%clk 0:01:08.5]} 60. Qf4 {[%clk 0:00:18.5]} 60... Nd6 {[%clk
0:01:10.4]} 61. exd6 {[%clk 0:00:18.7]} 1-0

[Event "*** Titled Tuesday 3|2 Blitz"]
[Site "Chess.com"]
[Date "2016.05.03"]
[Round "1"]
[White "vinceyoung15"]
[Black "Boryboy"]
[Result "1-0"]
[WhiteElo "2218"]
[BlackElo "2535"]
[TimeControl "180+2"]
[EndTime "17:09:24 PDT"]
[Termination "vinceyoung15 won by resignation"]

1. e4 {[%clk 0:03:00.3]} 1... e6 {[%clk 0:03:00.9]} 2. d4 {[%clk 0:03:01.1]}
2... d5 {[%clk 0:03:01.2]} 3. e5 {[%clk 0:03:02.5]} 3... c5 {[%clk 0:03:02.1]}
4. c3 {[%clk 0:03:04]} 4... Nc6 {[%clk 0:03:03.5]} 5. Nf3 {[%clk 0:03:05.1]}
5... Qb6 {[%clk 0:03:02.6]} 6. a3 {[%clk 0:03:06.1]} 6... c4 {[%clk 0:02:59.9]}
7. Nbd2 {[%clk 0:03:05.4]} 7... Na5 {[%clk 0:02:54.9]} 8. g3 {[%clk 0:03:06.6]}
8... Bd7 {[%clk 0:02:55.9]} 9. h4 {[%clk 0:03:07.8]} 9... Ne7 {[%clk 0:02:55.8]}
10. Bh3 {[%clk 0:03:09.3]} 10... h6 {[%clk 0:02:56.9]} 11. O-O {[%clk
0:03:10.3]} 11... Qc7 {[%clk 0:02:58.2]} 12. Re1 {[%clk 0:03:06.5]} 12... Nc8
{[%clk 0:02:59.5]} 13. Nh2 {[%clk 0:03:06.8]} 13... Nb6 {[%clk 0:03:00.5]} 14.
f4 {[%clk 0:03:07.4]} 14... g6 {[%clk 0:03:01.3]} 15. Ng4 {[%clk 0:03:06.3]}
15... O-O-O {[%clk 0:03:02.5]} 16. Nf6 {[%clk 0:03:05.7]} 16... Ba4 {[%clk
0:03:03.7]} 17. Qe2 {[%clk 0:03:02.2]} 17... Be7 {[%clk 0:03:04.5]} 18. Nf3
{[%clk 0:03:02.5]} 18... Kb8 {[%clk 0:03:05.5]} 19. g4 {[%clk 0:02:43.7]} 19...
Rdf8 {[%clk 0:03:02.5]} 20. Rf1 {[%clk 0:02:34.6]} 20... Nd7 {[%clk 0:03:00.3]}
21. Nxd7+ {[%clk 0:02:32.6]} 21... Qxd7 {[%clk 0:02:59.7]} 22. f5 {[%clk
0:02:19]} 22... gxf5 {[%clk 0:02:59.5]} 23. gxf5 {[%clk 0:02:20.1]} 23... Rfg8+
{[%clk 0:02:58.3]} 24. Kh1 {[%clk 0:02:06.8]} 24... a6 {[%clk 0:02:56.3]} 25.
Bf4 {[%clk 0:01:56.8]} 25... Ka7 {[%clk 0:02:54.9]} 26. fxe6 {[%clk 0:01:43.2]}
26... fxe6 {[%clk 0:02:55.8]} 27. Rg1 {[%clk 0:01:41.3]} 27... Rf8 {[%clk
0:02:51.7]} 28. Qe3 {[%clk 0:01:36]} 28... Bc2 {[%clk 0:02:50.7]} 29. Rg7 {[%clk
0:01:23.7]} 29... Be4 {[%clk 0:02:50]} 30. Kh2 {[%clk 0:01:21]} 30... Qb5 {[%clk
0:02:43.5]} 31. Rag1 {[%clk 0:00:53]} 31... Qxb2+ {[%clk 0:02:41.7]} 32. R1g2
{[%clk 0:00:53.8]} 32... Qxa3 {[%clk 0:02:42.9]} 33. Bxe6 {[%clk 0:00:48.4]}
33... Nc6 {[%clk 0:02:41.5]} 34. Bd7 {[%clk 0:00:39]} 34... Nd8 {[%clk
0:02:28.7]} 35. Rf2 {[%clk 0:00:27.2]} 35... Rhg8 {[%clk 0:02:15.3]} 36. Rxg8
{[%clk 0:00:26.5]} 36... Rxg8 {[%clk 0:02:17.2]} 37. Bg3 {[%clk 0:00:23.8]}
37... Qa1 {[%clk 0:02:00.4]} 38. Qxh6 {[%clk 0:00:15.4]} 38... Qd1 {[%clk
0:01:55]} 39. Qf4 {[%clk 0:00:11.5]} 39... Rf8 {[%clk 0:01:55.1]} 40. Qd2 {[%clk
0:00:09.1]} 40... Bxf3 {[%clk 0:01:54.5]} 41. Qxd1 {[%clk 0:00:09.6]} 41... Bxd1
{[%clk 0:01:56.4]} 42. Rxf8 {[%clk 0:00:08.3]} 42... Bxf8 {[%clk 0:01:58.3]} 43.
e6 {[%clk 0:00:09]} 43... Be7 {[%clk 0:01:58.8]} 44. Kh3 {[%clk 0:00:09.6]}
44... Bh5 {[%clk 0:01:59]} 45. Be5 {[%clk 0:00:10]} 45... b5 {[%clk 0:01:58.4]}
46. Kg3 {[%clk 0:00:09.1]} 46... Kb6 {[%clk 0:01:59.4]} 47. Bf4 {[%clk
0:00:10.7]} 47... a5 {[%clk 0:01:54]} 48. Bg5 {[%clk 0:00:11.7]} 48... Bxg5
{[%clk 0:01:55]} 49. hxg5 {[%clk 0:00:13.1]} 49... b4 {[%clk 0:01:52]} 50. e7
{[%clk 0:00:12.7]} 50... Nb7 {[%clk 0:01:52.4]} 51. e8=Q {[%clk 0:00:12.5]}
51... Bxe8 {[%clk 0:01:52.9]} 52. Bxe8 {[%clk 0:00:14.2]} 52... bxc3 {[%clk
0:01:54.6]} 53. Ba4 {[%clk 0:00:15.4]} 53... Nd6 {[%clk 0:01:42.3]} 54. g6
{[%clk 0:00:16.3]} 54... Nf5+ {[%clk 0:01:35.6]} 55. Kg4 {[%clk 0:00:16.6]}
55... Ng7 {[%clk 0:01:31.5]} 56. Kg5 {[%clk 0:00:17.5]} 56... Kc7 {[%clk
0:01:32]} 57. Kf6 {[%clk 0:00:18.6]} 57... Nh5+ {[%clk 0:01:33.6]} 58. Kg5
{[%clk 0:00:19.8]} 58... Ng7 {[%clk 0:01:35.1]} 59. Kf6 {[%clk 0:00:21.4]} 59...
Nh5+ {[%clk 0:01:33.7]} 60. Kf7 {[%clk 0:00:22.6]} 60... Kd6 {[%clk 0:01:33.3]}
61. g7 {[%clk 0:00:24]} 61... Nxg7 {[%clk 0:01:34.7]} 62. Kxg7 {[%clk
0:00:25.7]} 62... Ke6 {[%clk 0:01:36.6]} 63. Kg6 {[%clk 0:00:26.5]} 63... Ke7
{[%clk 0:01:36.8]} 64. Kf5 {[%clk 0:00:27.4]} 64... Kd6 {[%clk 0:01:37.7]} 65.
Kf6 {[%clk 0:00:28.3]} 65... Kc7 {[%clk 0:01:22.1]} 66. Ke5 {[%clk 0:00:27.8]}
66... c2 {[%clk 0:01:22]} 67. Bxc2 {[%clk 0:00:27]} 67... Kc6 {[%clk 0:01:23.2]}
68. Ba4+ {[%clk 0:00:27.5]} 68... Kb6 {[%clk 0:01:24.5]} 69. Kxd5 {[%clk
0:00:28.7]} 69... c3 {[%clk 0:01:26.4]} 70. Kc4 {[%clk 0:00:28.4]} 1-0

[Event "*** Titled Tuesday 3|2 Blitz"]
[Site "Chess.com"]
[Date "2016.05.03"]
[Round "1"]
[White "Elshan1985"]
[Black "howitzer14"]
[Result "1/2-1/2"]
[WhiteElo "2566"]
[BlackElo "2227"]
[TimeControl "180+2"]
[EndTime "17:09:46 PDT"]
[Termination "Game drawn - insufficient material"]

1. d4 {[%clk 0:03:00]} 1... Nf6 {[%clk 0:03:00.2]} 2. Nf3 {[%clk 0:03:00.2]}
2... d5 {[%clk 0:03:00.9]} 3. c4 {[%clk 0:02:54.9]} 3... c6 {[%clk 0:03:00.6]}
4. Nc3 {[%clk 0:02:55.9]} 4... dxc4 {[%clk 0:03:01]} 5. a4 {[%clk 0:02:56.2]}
5... e6 {[%clk 0:03:02.6]} 6. g3 {[%clk 0:02:54.2]} 6... c5 {[%clk 0:02:52.8]}
7. Bg2 {[%clk 0:02:53.5]} 7... Nc6 {[%clk 0:02:53.7]} 8. Be3 {[%clk 0:02:50.2]}
8... Ng4 {[%clk 0:02:41.6]} 9. dxc5 {[%clk 0:02:51.3]} 9... Nxe3 {[%clk
0:02:37.4]} 10. Qxd8+ {[%clk 0:02:49.9]} 10... Kxd8 {[%clk 0:02:38.8]} 11. fxe3
{[%clk 0:02:50.3]} 11... Bxc5 {[%clk 0:02:40.5]} 12. Kf2 {[%clk 0:02:41.4]}
12... Ke7 {[%clk 0:02:38]} 13. Rac1 {[%clk 0:02:36.5]} 13... f5 {[%clk
0:02:31.7]} 14. Nb5 {[%clk 0:02:31.8]} 14... Bd7 {[%clk 0:02:25.5]} 15. Rxc4
{[%clk 0:02:31.8]} 15... Bb6 {[%clk 0:02:27.2]} 16. Rd1 {[%clk 0:02:29.1]} 16...
Rhd8 {[%clk 0:02:24.6]} 17. Nfd4 {[%clk 0:02:28.5]} 17... Ne5 {[%clk 0:02:22.1]}
18. Rc3 {[%clk 0:02:26.7]} 18... Ba5 {[%clk 0:02:05.1]} 19. Rb3 {[%clk
0:02:17.8]} 19... a6 {[%clk 0:01:57.7]} 20. Nc3 {[%clk 0:02:08.7]} 20... Ng4+
{[%clk 0:01:57.2]} 21. Kf3 {[%clk 0:02:09.4]} 21... Nxh2+ {[%clk 0:01:49]} 22.
Kf2 {[%clk 0:02:10.6]} 22... Ng4+ {[%clk 0:01:50.6]} 23. Kf3 {[%clk 0:02:12]}
23... Rab8 {[%clk 0:01:36.8]} 24. e4 {[%clk 0:02:01.3]} 24... Bxc3 {[%clk
0:00:46.9]} 25. Rxc3 {[%clk 0:01:59.4]} 25... Rdc8 {[%clk 0:00:48.5]} 26. exf5
{[%clk 0:01:58.6]} 26... Rxc3+ {[%clk 0:00:48]} 27. bxc3 {[%clk 0:01:58.6]}
27... exf5 {[%clk 0:00:49.8]} 28. Kf4 {[%clk 0:01:56.1]} 28... Kf6 {[%clk
0:00:48.1]} 29. Nf3 {[%clk 0:01:47.4]} 29... Be6 {[%clk 0:00:48.6]} 30. Ng5
{[%clk 0:01:47.1]} 30... h6 {[%clk 0:00:42.5]} 31. Nxe6 {[%clk 0:01:46.1]} 31...
Kxe6 {[%clk 0:00:43.8]} 32. Bd5+ {[%clk 0:01:26.1]} 32... Kf6 {[%clk 0:00:41.7]}
33. Bb3 {[%clk 0:01:26.7]} 33... g5+ {[%clk 0:00:38.7]} 34. Kf3 {[%clk
0:01:27.8]} 34... Ne5+ {[%clk 0:00:39.5]} 35. Ke3 {[%clk 0:01:24.4]} 35... Re8
{[%clk 0:00:38.8]} 36. Rd6+ {[%clk 0:01:21]} 36... Kg7 {[%clk 0:00:40.4]} 37.
Kd2 {[%clk 0:01:18.2]} 37... Re7 {[%clk 0:00:40]} 38. a5 {[%clk 0:01:17.7]}
38... Nc6 {[%clk 0:00:39.3]} 39. Rd5 {[%clk 0:01:15]} 39... Kf6 {[%clk
0:00:40.1]} 40. Rd6+ {[%clk 0:01:15]} 40... Kg7 {[%clk 0:00:39.2]} 41. Rd5
{[%clk 0:01:16.3]} 41... Re5 {[%clk 0:00:29.6]} 42. Rd7+ {[%clk 0:01:15.7]}
42... Kg6 {[%clk 0:00:29.4]} 43. Rxb7 {[%clk 0:01:10.4]} 43... Nxa5 {[%clk
0:00:30.5]} 44. Rb6+ {[%clk 0:01:07.9]} 44... Kg7 {[%clk 0:00:32.1]} 45. Ba2
{[%clk 0:01:06.2]} 45... Rb5 {[%clk 0:00:31.1]} 46. Rxb5 {[%clk 0:01:02.6]}
46... axb5 {[%clk 0:00:32.5]} 47. Kd3 {[%clk 0:01:04.1]} 47... Kf6 {[%clk
0:00:29.7]} 48. Kd4 {[%clk 0:01:03.9]} 48... h5 {[%clk 0:00:30.9]} 49. Bd5
{[%clk 0:01:03.7]} 49... h4 {[%clk 0:00:28.3]} 50. gxh4 {[%clk 0:01:04.5]} 50...
gxh4 {[%clk 0:00:29.8]} 51. Kc5 {[%clk 0:01:05.4]} 51... Ke5 {[%clk 0:00:31.5]}
52. Bf3 {[%clk 0:01:03.5]} 52... Nb3+ {[%clk 0:00:31.1]} 53. Kxb5 {[%clk
0:01:03.2]} 53... Nd2 {[%clk 0:00:32.6]} 54. Bh1 {[%clk 0:01:01.2]} 54... Kf4
{[%clk 0:00:30.9]} 55. c4 {[%clk 0:01:00.2]} 55... Ke3 {[%clk 0:00:26.1]} 56. c5
{[%clk 0:01:00.2]} 56... Nb3 {[%clk 0:00:25.9]} 57. c6 {[%clk 0:00:46.3]} 57...
Nd4+ {[%clk 0:00:26.6]} 58. Kc5 {[%clk 0:00:47.7]} 58... f4 {[%clk 0:00:24.9]}
59. Bf3 {[%clk 0:00:42.4]} 59... h3 {[%clk 0:00:25]} 60. c7 {[%clk 0:00:42.5]}
60... Ne6+ {[%clk 0:00:21.3]} 61. Kd6 {[%clk 0:00:43.7]} 61... Nxc7 {[%clk
0:00:22.2]} 62. Kxc7 {[%clk 0:00:45.6]} 62... Kf2 {[%clk 0:00:22]} 63. Kd6
{[%clk 0:00:45]} 63... h2 {[%clk 0:00:23.4]} 64. Ke5 {[%clk 0:00:45.9]} 64...
h1=B {[%clk 0:00:22.8]} 65. Bxh1 {[%clk 0:00:46.9]} 65... Kxe2 {[%clk
0:00:22.9]} 66. Kxf4 {[%clk 0:00:48.3]} 1/2-1/2

[Event "*** Titled Tuesday 3|2 Blitz"]
[Site "Chess.com"]
[Date "2016.05.03"]
[Round "1"]
[White "KNVB"]
[Black "Newlight1"]
[Result "0-1"]
[WhiteElo "2561"]
[BlackElo "2232"]
[TimeControl "180+2"]
[EndTime "17:09:48 PDT"]
[Termination "Newlight1 won by checkmate"]

1. d4 {[%clk 0:02:59.9]} 1... Nf6 {[%clk 0:02:57.7]} 2. c4 {[%clk 0:03:00.4]}
2... c5 {[%clk 0:02:59.2]} 3. d5 {[%clk 0:03:01.4]} 3... e6 {[%clk 0:03:00.7]}
4. Nc3 {[%clk 0:03:02.3]} 4... exd5 {[%clk 0:03:02.2]} 5. cxd5 {[%clk
0:03:01.5]} 5... d6 {[%clk 0:03:03.7]} 6. e4 {[%clk 0:03:02.1]} 6... g6 {[%clk
0:03:04.9]} 7. h3 {[%clk 0:03:03.4]} 7... Bg7 {[%clk 0:03:06.5]} 8. Nf3 {[%clk
0:03:05]} 8... O-O {[%clk 0:03:08]} 9. Bd3 {[%clk 0:03:06.5]} 9... b5 {[%clk
0:03:09.2]} 10. Nxb5 {[%clk 0:03:04.9]} 10... Re8 {[%clk 0:02:52.5]} 11. O-O
{[%clk 0:03:01.1]} 11... Nxe4 {[%clk 0:02:51.8]} 12. Re1 {[%clk 0:03:02]} 12...
f5 {[%clk 0:02:48.3]} 13. Bxe4 {[%clk 0:02:21.1]} 13... Rxe4 {[%clk 0:02:45.5]}
14. Rxe4 {[%clk 0:02:19.3]} 14... fxe4 {[%clk 0:02:46.2]} 15. Ng5 {[%clk
0:02:19.8]} 15... Qb6 {[%clk 0:02:44.9]} 16. Nc3 {[%clk 0:02:13]} 16... Na6
{[%clk 0:02:37.7]} 17. Ngxe4 {[%clk 0:02:08.7]} 17... Bf5 {[%clk 0:02:35.8]} 18.
Ng3 {[%clk 0:02:04.3]} 18... Rf8 {[%clk 0:02:33]} 19. Qe2 {[%clk 0:01:52.5]}
19... Nc7 {[%clk 0:02:30.4]} 20. Bg5 {[%clk 0:01:45.7]} 20... Be5 {[%clk
0:02:25.9]} 21. Rd1 {[%clk 0:01:38.5]} 21... Qb4 {[%clk 0:02:22.4]} 22. Qd2
{[%clk 0:01:21.5]} 22... Rf7 {[%clk 0:02:20]} 23. Be3 {[%clk 0:01:22.4]} 23...
Qc4 {[%clk 0:02:15.5]} 24. Bh6 {[%clk 0:01:08.4]} 24... Qb4 {[%clk 0:02:13]} 25.
Nge2 {[%clk 0:01:05.1]} 25... Bd7 {[%clk 0:02:09.1]} 26. Qg5 {[%clk 0:00:59.7]}
26... Ne8 {[%clk 0:02:02.4]} 27. Rd2 {[%clk 0:00:56.3]} 27... a5 {[%clk
0:01:58.4]} 28. Qe3 {[%clk 0:00:54.5]} 28... Re7 {[%clk 0:01:56.5]} 29. Bg5
{[%clk 0:00:47.8]} 29... Bh2+ {[%clk 0:01:33.9]} 30. Kxh2 {[%clk 0:00:48.8]}
30... Rxe3 {[%clk 0:01:33.7]} 31. Bxe3 {[%clk 0:00:50.7]} 31... Nf6 {[%clk
0:01:31.1]} 32. Bg5 {[%clk 0:00:41.2]} 32... Kg7 {[%clk 0:01:29.6]} 33. a3
{[%clk 0:00:35.1]} 33... Qc4 {[%clk 0:01:26.2]} 34. Ng3 {[%clk 0:00:35]} 34...
a4 {[%clk 0:01:22.3]} 35. Re2 {[%clk 0:00:32.3]} 35... Nxd5 {[%clk 0:01:19.5]}
36. Nxd5 {[%clk 0:00:32.5]} 36... Qxd5 {[%clk 0:01:18.5]} 37. Re7+ {[%clk
0:00:29.7]} 37... Kf8 {[%clk 0:01:18.3]} 38. Bf6 {[%clk 0:00:26.1]} 38... Bc6
{[%clk 0:01:12.2]} 39. f3 {[%clk 0:00:18.8]} 39... h5 {[%clk 0:00:56.9]} 40. h4
{[%clk 0:00:19.2]} 40... Qd3 {[%clk 0:00:54.2]} 41. Rc7 {[%clk 0:00:18.2]} 41...
Qa6 {[%clk 0:00:52.4]} 42. Be7+ {[%clk 0:00:12.3]} 42... Kg8 {[%clk 0:00:52.7]}
43. Bxd6 {[%clk 0:00:13.5]} 43... Bxf3 {[%clk 0:00:49.1]} 44. Be5 {[%clk
0:00:14]} 44... Qe6 {[%clk 0:00:42.6]} 45. Rxc5 {[%clk 0:00:09.8]} 45... Bb7
{[%clk 0:00:38.9]} 46. Bc3 {[%clk 0:00:10.2]} 46... Qb6 {[%clk 0:00:35.5]} 47.
Rg5 {[%clk 0:00:09.2]} 47... Kf7 {[%clk 0:00:34.5]} 48. Ne2 {[%clk 0:00:05.7]}
48... Qf2 {[%clk 0:00:32.3]} 49. Rg3 {[%clk 0:00:05.2]} 49... Qxe2 {[%clk
0:00:30.7]} 50. Bd4 {[%clk 0:00:05.7]} 50... Qc4 {[%clk 0:00:29.8]} 51. Bc3
{[%clk 0:00:04.9]} 51... Qxh4+ {[%clk 0:00:29.9]} 52. Rh3 {[%clk 0:00:06.6]}
52... Qf4+ {[%clk 0:00:27.8]} 53. Kg1 {[%clk 0:00:08.3]} 53... Qg5 {[%clk
0:00:24.5]} 54. Rh2 {[%clk 0:00:04.1]} 54... Qe3+ {[%clk 0:00:22]} 55. Kf1
{[%clk 0:00:04.1]} 55... Ba6# {[%clk 0:00:22.3]} 0-1